Workbook

Sheet Collectes
A1: num Collecte | B1: Date | C1: idTypMatériel | D1: Kg collectés | E1: Kg Recyclés | F1: Kg réemployés
A2: 1 | B2: 2019-01-16 | C2: 1 | D2: 150 | E2: 122 | F2: 0
C3: 2 | D3: 6 | E3: 4 | F3: 2
A4: 2 | B4: 2019-02-18 | C4: 1 | D4: 135 | E4: 101 | F4: 0
C5: 3 | D5: 35 | E5: 29 | F5: 6
C6: 7 | D6: 40 | E6: 20 | F6: 0
A7: 3 | B7: 2019-03-14 | C7: 1 | D7: 180 | E7: 138 | F7: 0
C8: 2 | D8: 7 | E8: 2 | F8: 2
C9: 4 | D9: 8 | E9: 4 | F9: 0
A10: 4 | B10: 2019-04-13 | C10: 1 | D10: 234 | E10: 172 | F10: 0
A11: 5 | B11: 2019-05-11 | C11: 5 | D11: 3 | E11: 1 | F11: 1
C12: 7 | D12: 43 | E12: 6 | F12: 0
A13: 6 | B13: 2019-06-13 | C13: 1 | D13: 276 | E13: 203 | F13: 0
C14: 2 | D14: 6 | E14: 2 | F14: 2
C15: 6 | D15: 2 | E15: 1 | F15: 0
A16: 7 | B16: 2019-07-16 | C16: 1 | D16: 200 | E16: 149 | F16: 0
C17: 2 | D17: 5 | E17: 2 | F17: 1
A18: 8 | B18: 2019-08-18 | C18: 3 | D18: 23 | E18: 19 | F18: 4
A19: 9 | B19: 2019-09-14 | C19: 1 | D19: 100 | E19: 89 | F19: 0
C20: 2 | D20: 7 | E20: 2 | F20: 2
A21: 10 | B21: 2019-10-14 | C21: 1 | D21: 230 | E21: 179 | F21: 0
C22: 2 | D22: 6 | E22: 4 | F22: 2
A23: 11 | B23: 2019-11-08 | C23: 1 | D23: 122 | E23: 92 | F23: 0
C24: 3 | D24: 30 | E24: 25 | F24: 5
C25: 7 | D25: 45 | E25: 22 | F25: 0
A26: 12 | B26: 2019-12-14 | C26: 1 | D26: 180 | E26: 130 | F26: 0
C27: 2 | D27: 7 | E27: 2 | F27: 2

Sheet Suivi
A1: Client | B1: Salmin Immobilier | C1: il faudrait avoir une table des clients…
A2: Année | B2: Type abonnement | C2: Formule | D2: Nombre de collectes | E2: Poids moyen par collecte | F2: Coût global annuel du tri | G2: Gain annuel du tri | H2: Total annuel à régler | I2: Economie réalisée grâce au tri
A3: =YEAR(MAX(Collectes!B2:B101)) -> 2019 | B3: 4 | C3: =VLOOKUP(B3,TabAbonnements,2,0) -> Total Recycle | D3: =MAX(numCollecte) -> 12 | E3: =ROUND(D19/D3,2) -> 173.33 | F3: =VLOOKUP(TypA,TabAbonnements,3,0)+E19 -> 1900.5 | G3: =SUM(G19,I19) -> 329.55 | H3: =F3-G3 -> 1570.95 | I3: =G3/F3 -> 0.1734017364 | K3: Deux indicateurs de performance synthétisent ces résultats (Performance Recyclage et Performance Réemploi). Ils s’obtiennent en rapportant le nombre de cas « OK », au nombre de cas où l’objectif a été mesuré
A5: Performance Recyclage | C5: =COUNTIF(F23:F30,"OK")/COUNT(D23:D30) -> 0.5714285714 | D5: Performance Réemploi | F5: =COUNTIF(I23:I30,"OK")/COUNT(G23:G30) -> 0.4285714286
D9: Collecte | F9: Recyclage | H9: Réemploi
A10: Code | B10: Matériels | D10: Kilos collectés | E10: Coût collecte | F10: Kilos recyclés | G10: Gain recyclage | H10: Kilos réemployés | I10: Gain réemploi
A11: 1 | B11: Papiers et cartons | D11: =SUMIFS(Collectes!$D$2:$D$27,Collectes!$C$2:$C$27,Suivi!A11) -> 1807 | E11: =D11*Tarifs!E4 -> 903.5 | F11: =SUMIFS(Collectes!$E$2:$E$27,Collectes!$C$2:$C$27,Suivi!A11) -> 1375 | G11: =F11*Tarifs!F4 -> 275 | H11: =SUMIFS(Collectes!$F$2:$F$27,Collectes!$C$2:$C$27,Suivi!A11) -> 0 | I11: =H11*Tarifs!G4 -> 0
A12: 2 | B12: Cartouches d'encres | D12: =SUMIFS(Collectes!$D$2:$D$27,Collectes!$C$2:$C$27,Suivi!A12) -> 44 | E12: =D12*Tarifs!E5 -> 88 | F12: =SUMIFS(Collectes!$E$2:$E$27,Collectes!$C$2:$C$27,Suivi!A12) -> 18 | G12: =F12*Tarifs!F5 -> 9 | H12: =SUMIFS(Collectes!$F$2:$F$27,Collectes!$C$2:$C$27,Suivi!A12) -> 13 | I12: =H12*Tarifs!G5 -> 13
A13: 3 | B13: Matériels informatiques | D13: =SUMIFS(Collectes!$D$2:$D$27,Collectes!$C$2:$C$27,Suivi!A13) -> 88 | E13: =D13*Tarifs!E6 -> 88 | F13: =SUMIFS(Collectes!$E$2:$E$27,Collectes!$C$2:$C$27,Suivi!A13) -> 73 | G13: =F13*Tarifs!F6 -> 14.6 | H13: =SUMIFS(Collectes!$F$2:$F$27,Collectes!$C$2:$C$27,Suivi!A13) -> 15 | I13: =H13*Tarifs!G6 -> 3.75
A14: 4 | B14: Autres supports de données | D14: =SUMIFS(Collectes!$D$2:$D$27,Collectes!$C$2:$C$27,Suivi!A14) -> 8 | E14: =D14*Tarifs!E7 -> 40 | F14: =SUMIFS(Collectes!$E$2:$E$27,Collectes!$C$2:$C$27,Suivi!A14) -> 4 | G14: =F14*Tarifs!F7 -> 4 | H14: =SUMIFS(Collectes!$F$2:$F$27,Collectes!$C$2:$C$27,Suivi!A14) -> 0 | I14: =H14*Tarifs!G7 -> 0
A15: 5 | B15: Piles et accus | D15: =SUMIFS(Collectes!$D$2:$D$27,Collectes!$C$2:$C$27,Suivi!A15) -> 3 | E15: =D15*Tarifs!E8 -> 15 | F15: =SUMIFS(Collectes!$E$2:$E$27,Collectes!$C$2:$C$27,Suivi!A15) -> 1 | G15: =F15*Tarifs!F8 -> 1.25 | H15: =SUMIFS(Collectes!$F$2:$F$27,Collectes!$C$2:$C$27,Suivi!A15) -> 1 | I15: =H15*Tarifs!G8 -> 1.5
A16: 6 | B16: Lampes, néons et ampoules | D16: =SUMIFS(Collectes!$D$2:$D$27,Collectes!$C$2:$C$27,Suivi!A16) -> 2 | E16: =D16*Tarifs!E9 -> 10 | F16: =SUMIFS(Collectes!$E$2:$E$27,Collectes!$C$2:$C$27,Suivi!A16) -> 1 | G16: =F16*Tarifs!F9 -> 0.25 | H16: =SUMIFS(Collectes!$F$2:$F$27,Collectes!$C$2:$C$27,Suivi!A16) -> 0 | I16: =H16*Tarifs!G9 -> 0
A17: 7 | B17: Autres petits déchets recyclables de bureau | D17: =SUMIFS(Collectes!$D$2:$D$27,Collectes!$C$2:$C$27,Suivi!A17) -> 128 | E17: =D17*Tarifs!E10 -> 256 | F17: =SUMIFS(Collectes!$E$2:$E$27,Collectes!$C$2:$C$27,Suivi!A17) -> 48 | G17: =F17*Tarifs!F10 -> 7.2 | H17: =SUMIFS(Collectes!$F$2:$F$27,Collectes!$C$2:$C$27,Suivi!A17) -> 0 | I17: =H17*Tarifs!G10 -> 0
A18: 8 | B18: Mobilier de bureau | D18: =SUMIFS(Collectes!$D$2:$D$27,Collectes!$C$2:$C$27,Suivi!A18) -> 0 | E18: =D18*Tarifs!E11 -> 0 | F18: =SUMIFS(Collectes!$E$2:$E$27,Collectes!$C$2:$C$27,Suivi!A18) -> 0 | G18: =F18*Tarifs!F11 -> 0 | H18: =SUMIFS(Collectes!$F$2:$F$27,Collectes!$C$2:$C$27,Suivi!A18) -> 0 | I18: =H18*Tarifs!G11 -> 0
C19: Total | D19: =SUM(D11:D18) -> 2080 | E19: =SUM(E11:E18) -> 1400.5 | F19: 1520 | G19: 311.3 | H19: 29 | I19: 18.25
D21: Recyclage | G21: Réemploi
A22: Code | B22: Matériels | D22: % | E22: Objectif | F22: Niveau de votre entreprise | G22: % | H22: Objectif | I22: Niveau de votre entreprise
A23: 1 | B23: Papiers et cartons | D23: =F11/D11 -> 0.7609297178 | E23: 0.75 | F23: =IF(D23>E23,"OK","") -> OK | G23: =H11/D11 -> 0 | H23: 0 | I23: =IF(G23>H23,"OK","") -> 
A24: 2 | B24: Cartouches d'encres | D24: 0.4090909091 | E24: 0.65 | F24: =IF(D24>E24,"OK","") ->  | G24: 0.2954545455 | H24: 0.25 | I24: =IF(G24>H24,"OK","") -> OK
A25: 3 | B25: Matériels informatiques | D25: 0.8295454545 | E25: 0.6 | F25: OK | G25: 0.1704545455 | H25: 0.1 | I25: OK
A26: 4 | B26: Autres supports de données | D26: 0.5 | E26: 0.35 | F26: OK | G26: 0 | H26: 0.15
A27: 5 | B27: Piles et accus | D27: 0.3333333333 | E27: 0.5 | G27: 0.3333333333 | H27: 0.05 | I27: OK
A28: 6 | B28: Lampes, néons et ampoules | D28: 0.5 | E28: 0.15 | F28: OK | G28: 0 | H28: 0.05
A29: 7 | B29: Autres petits déchets recyclables de bureau | D29: 0.375 | E29: 0.4 | G29: 0 | H29: 0
A30: 8 | B30: Mobilier de bureau

Sheet Tarifs
B2: Tarifs de matériels prélevés
B3: Identifiant | C3: Matériels | D3: Contient des données | E3: Prix du Kg collecté | F3: Prix du kilo recyclé | G3: Prix du Kilo réemployé | H3: % moyen de recyclage | I3: % moyen de réemploi
B4: 1 | C4: Papiers et cartons | D4: O | E4: 0.5 | F4: 0.2 | G4: 0 | H4: 0.75 | I4: 0
B5: 2 | C5: Cartouches d'encres | D5: N | E5: 2 | F5: 0.5 | G5: 1 | H5: 0.65 | I5: 0.25
B6: 3 | C6: Matériels informatiques | D6: O | E6: 1 | F6: 0.2 | G6: 0.25 | H6: 0.6 | I6: 0.1
B7: 4 | C7: autres supports de données | D7: O | E7: 5 | F7: 1 | G7: 1.5 | H7: 0.35 | I7: 0.15
B8: 5 | C8: Piles et accus | D8: N | E8: 5 | F8: 1.25 | G8: 1.5 | H8: 0.5 | I8: 0.05
B9: 6 | C9: Lampes, néons et ampoules | D9: N | E9: 5 | F9: 0.25 | G9: 2 | H9: 0.15 | I9: 0.05
B10: 7 | C10: Autres petits déchets recyclables de bureau | D10: N | E10: 2 | F10: 0.15 | G10: 0 | H10: 0.4 | I10: 0
B11: 8 | C11: Mobilier de bureau | D11: N | E11: 1 | F11: 0.3 | G11: 0.5 | H11: 0.2 | I11: 0.15
D13: contient des données devant donc être détruites=> traitement spécifique
B14: Abonnements
B15: Type abonnement | C15: Formule | D15: Tarif annuel
B16: 1 | C16: Recycle Papier | D16: 50
B17: 2 | C17: Recycle Cartouche | D17: 60
B18: 3 | C18: Recycle Data | D18: 300
B19: 4 | C19: Total Recycle | D19: 500

Sheet NotesSuiviPluriAnnuel
A1: Remarques : | C1: il ne s'agit pas ici de critiques relatives à un sujet d'examen (qui est forcément limité compte tenu des temps impartis au traitement d'un dossier)
C2: il s'agit de proposer des améliorations a minima
A4: 1) la macro à compléter se contente de mettre en archiveles données annuelles d'un client
A5: 2) cela suppose qu'il y a un fichier par client (pb d'optimisation)
A6: 3) une feuille d'archivage est normalement sécurisée (masquée et protégée)
A7: 4) la structure de la table pluriannuelle doit systématiquement commencer en A1
A8: 5) la macro demandée ne tient pas compte de ce que l'on peut appuyer plusieurs fois sur le bouton et donc peut générer des doublons (comme dans tout archivage)
A10: il convient donc de la restructurer, et d'utilser pour simplifier le développement la programmation modulaire.
A12: Macro demandée dans l'énoncé | G12: il faut rajouter :
A13: Sub CopierData() | G13: 1)
A14: ' | G14: Sub EnleverDoublons()
A15: ' CopierData Macro | G15: '
A16: ' | G16: ' EnleverDoublons Macro
B17: ouvrir la feuille pluriannuel avant avec : | G17: '
A18: '
A19: Sheets("SuiviPluriAnnuel").Select | G19: '
A20: Rows("2:2").Select | G20: Sheets("SuiviPluriAnnuel").Select
A21: Selection.Insert Shift:=xlDown, CopyOrigin:=xlFormatFromLeftOrAbove | G21: Range("A1:L1").Select
A22: Range("A2").Select | G22: Selection.Copy
A23: Sheets("Suivi").Select | G23: Range("N1").Select
A24: Range("B1").Select | G24: Selection.PasteSpecial Paste:=xlPasteValues, Operation:=xlNone, SkipBlanks _
A25: Selection.Copy | G25: :=False, Transpose:=False
A26: Sheets("SuiviPluriAnnuel").Select | G26: Application.CutCopyMode = False
A27: Selection.PasteSpecial Paste:=xlPasteValues, Operation:=xlNone, SkipBlanks _ | G27: Application.CutCopyMode = False
A28: :=False, Transpose:=False | G28: Application.CutCopyMode = False
A29: Sheets("Suivi").Select | G29: Columns("A:L").AdvancedFilter Action:=xlFilterCopy, CopyToRange:=Range( _
A30: Range("A3").Select | G30: "N1:Y1"), Unique:=True
A31: Application.CutCopyMode = False | G31: Columns("A:M").Select
A32: Selection.Copy | G32: Range("M1").Activate
A33: Sheets("SuiviPluriAnnuel").Select | G33: Selection.Delete Shift:=xlToLeft
A34: Range("B2").Select | G34: Range("A1").Select
A35: Selection.PasteSpecial Paste:=xlPasteValues, Operation:=xlNone, SkipBlanks _ | G35: End Sub
A36: :=False, Transpose:=False
A37: Sheets("Suivi").Select | G37: 2)
A38: Range("B3").Select | G38: Sub FermerArchive()
A39: Application.CutCopyMode = False | G39: '
A40: Selection.Copy | G40: ' FermerArchive Macro
A41: Sheets("SuiviPluriAnnuel").Select | G41: '
A42: Range("C2").Select
A43: Selection.PasteSpecial Paste:=xlPasteValues, Operation:=xlNone, SkipBlanks _ | G43: '
A44: :=False, Transpose:=False | G44: Sheets("SuiviPluriAnnuel").Select
A45: Sheets("Suivi").Select | G45: ActiveSheet.Protect DrawingObjects:=True, Contents:=True, Scenarios:=True
A46: Range("C3").Select | G46: Sheets("SuiviPluriAnnuel").Select
A47: Application.CutCopyMode = False | G47: ActiveWindow.SelectedSheets.Visible = False
A48: Selection.Copy | G48: End Sub
A49: Sheets("SuiviPluriAnnuel").Select | G49: puis :
A50: Range("D2").Select | G50: 3)
A51: Selection.PasteSpecial Paste:=xlPasteValues, Operation:=xlNone, SkipBlanks _ | G51: Sub OuvrirArchive()
A52: :=False, Transpose:=False | G52: '
A53: Sheets("Suivi").Select | G53: ' OuvrirArchive Macro
A54: Range("D3").Select | G54: '
A55: Application.CutCopyMode = False
A56: Selection.Copy | G56: '
A57: Sheets("SuiviPluriAnnuel").Select | G57: Sheets("NotesSuiviPluriAnnuel").Select
A58: Range("E2").Select | G58: Sheets("SuiviPluriAnnuel").Visible = True
A59: Selection.PasteSpecial Paste:=xlPasteValues, Operation:=xlNone, SkipBlanks _ | G59: Sheets("SuiviPluriAnnuel").Select
A60: :=False, Transpose:=False | G60: ActiveSheet.Unprotect
A61: Sheets("Suivi").Select | G61: End Sub
A62: Range("E3:I3").Select
A63: Application.CutCopyMode = False | G63: enfin il faut écrire la macro composée de ces macros élémentaires :
A64: Selection.Copy | G64: Sub Archiver()
A65: Sheets("SuiviPluriAnnuel").Select | G65: OuvrirArchive
A66: Range("F2").Select | G66: CopierData
A67: Selection.PasteSpecial Paste:=xlPasteValues, Operation:=xlNone, SkipBlanks _ | G67: EnleverDoublons
A68: :=False, Transpose:=False | G68: FermerArchive
A69: Sheets("Suivi").Select | G69: End Sub
A70: Range("C5").Select
A71: Application.CutCopyMode = False
A72: Selection.Copy
A73: Sheets("SuiviPluriAnnuel").Select
A74: Range("K2").Select
A75: Selection.PasteSpecial Paste:=xlPasteValues, Operation:=xlNone, SkipBlanks _
A76: :=False, Transpose:=False
A77: Sheets("Suivi").Select
A78: Range("F5").Select
A79: Application.CutCopyMode = False
A80: Selection.Copy
A81: Sheets("SuiviPluriAnnuel").Select
A82: Range("L2").Select
A83: Selection.PasteSpecial Paste:=xlPasteValues, Operation:=xlNone, SkipBlanks _
A84: :=False, Transpose:=False
A85: End Sub

Sheet SuiviPluriAnnuel (hidden)
A1: Client | B1: Année | C1: Type abonnement | D1: Formule | E1: Nombre de collectes | F1: Poids moyen | G1: Coût global annuel du tri | H1: Gain annuel du tri | I1: Total annuel à régler | J1: … réalisée grâce au tri | K1: Performance Recyclage | L1: Performance Réemploi
A2: Salmin Immobilier | B2: 2019 | C2: 4 | D2: Total Recycle | E2: 12 | F2: 173.33 | G2: 1900.5 | H2: 329.55 | I2: 1570.95 | J2: 0.1734017364 | K2: 0.5714285714 | L2: 0.4285714286
A3: Salmin Immobilier | B3: 2018 | C3: 4 | D3: Total Recycle | E3: 10 | F3: 160.56 | G3: 1200.34 | H3: 223.5 | I3: 976.84 | J3: 0.19 | K3: 0.5714285714 | L3: 0.4285714286
A4: Salmin Immobilier | B4: 2017 | C4: 4 | D4: Total Recycle | E4: 6 | F4: 154.32 | G4: 854.25 | H4: 55.26 | I4: 798.99 | J4: 0.06 | K4: 67 | L4: 0.4285714286
